bitfinex-derivatives/quotes_BTCF0:USTF0_20250602
["timestamp","ask_amount","ask_price","bid_price","bid_amount"]
[1748862822477,1.14295516,104540.0,104530.0,0.57347768]
[1748862822665,1.58415516,104540.0,104530.0,0.57347768]
[1748862826779,1.14295516,104540.0,104530.0,0.57347768]
[1748862826978,1.58415516,104540.0,104530.0,0.57347768]
[1748862832083,1.8826866,104540.0,104530.0,0.55792019]
[1748862832982,1.4414866,104540.0,104530.0,0.55792019]
[1748862833379,1.8826866,104540.0,104530.0,0.55792019]
[1748862833577,0.89373144,104540.0,104530.0,1.34421318]
[1748862833774,0.79373144,104540.0,104530.0,1.34421318]
[1748862836483,0.79373144,104540.0,104530.0,0.90301318]
[1748862836688,0.79373144,104540.0,104530.0,1.34417318]
[1748862836689,0.89373144,104540.0,104530.0,1.34417318]
[1748862836887,0.40153144,104540.0,104530.0,1.34417318]
[1748862837080,0.103,104540.0,104530.0,1.34417318]
[1748862839693,0.103,104540.0,104530.0,0.90301318]
[1748862839990,0.74198446,104540.0,104530.0,0.39574067]
[1748862840176,1.62110446,104540.0,104530.0,0.39574067]
[1748862840584,1.9196359,104540.0,104530.0,0.39554067]
[1748862840784,1.9196359,104540.0,104530.0,0.39574067]
[1748862840785,1.7284066,104540.0,104530.0,0.39574067]
[1748862840985,1.7284066,104540.0,104530.0,0.39554067]
[1748862841292,1.7284066,104540.0,104530.0,0.39574067]
[1748862841998,1.7284066,104540.0,104530.0,0.3801836]
[1748862842388,1.7284066,104540.0,104530.0,0.52665611]
[1748862842999,1.7284066,104540.0,104530.0,0.3801836]
[1748862843483,1.42987516,104540.0,104530.0,0.3801836]
[1748862844695,1.34292,104540.0,104530.0,0.3801836]
[1748862844890,1.42987516,104540.0,104530.0,0.3801836]
[1748862845793,1.42987516,104540.0,104530.0,0.52665611]
[1748862847502,1.42987516,104540.0,104530.0,0.3781836]
[1748862848797,1.76757697,104540.0,104530.0,0.0012]
[1748862849092,1.87097697,104540.0,104530.0,0.001]
[1748862849294,1.87097697,104540.0,104530.0,0.0012]
[1748862849491,2.16950841,104540.0,104530.0,0.0012]
[1748862849885,1.87097697,104540.0,104530.0,0.0012]
[1748862850083,1.87097697,104540.0,104530.0,0.001]
[1748862850287,1.87097697,104540.0,104530.0,0.0012]
[1748862851798,2.26954895,104540.0,104530.0,0.0012]
[1748862852603,0.43772011,104530.0,104520.0,0.00014371]
[1748862852901,1.23367527,104530.0,104520.0,0.00014371]
[1748862853401,0.1912842,104510.0,104500.0,0.28930526]
[1748862853586,1.32663187,104510.0,104500.0,0.28892777]
[1748862853792,1.62483187,104510.0,104500.0,0.48023027]
[1748862854096,1.62483187,104510.0,104500.0,0.49849911]
[1748862854295,1.92327021,104510.0,104500.0,0.35629911]
[1748862854501,1.92327021,104510.0,104500.0,0.35649911]
[1748862854502,1.7767977,104510.0,104500.0,0.35649911]
[1748862854890,1.7767977,104510.0,104500.0,0.35629911]
[1748862855100,1.7767977,104510.0,104500.0,0.35649911]
[1748862855301,1.7767977,104510.0,104500.0,0.31429661]
[1748862855492,1.7767977,104510.0,104500.0,0.50559911]
[1748862855493,1.7777977,104510.0,104500.0,0.50559911]
[1748862855694,1.7777977,104510.0,104500.0,0.50539911]
[1748862855892,1.78836174,104510.0,104500.0,0.50559911]
[1748862856093,1.93483425,104510.0,104500.0,0.50559911]
[1748862856289,1.7787977,104510.0,104500.0,0.50559911]
[1748862856494,1.48035936,104510.0,104500.0,0.50559911]
[1748862857394,0.84795516,104510.0,104500.0,0.50559911]
[1748862857605,0.84795516,104510.0,104500.0,0.65207162]
[1748862857606,1.28911516,104510.0,104500.0,0.65207162]
[1748862857795,0.54316,104510.0,104500.0,0.65207162]
[1748862862697,0.69146,104510.0,104500.0,0.65207162]
[1748862863106,0.8827442,104510.0,104500.0,0.65207162]
[1748862863309,0.83626,104510.0,104500.0,0.65207162]
[1748862863501,0.83626,104510.0,104500.0,0.50559911]
[1748862864101,0.69146,104510.0,104500.0,0.65207162]
[1748862865305,0.98989834,104510.0,104500.0,0.65207162]
[1748862866603,0.69146,104510.0,104500.0,0.65207162]
[1748862867403,0.98989834,104510.0,104500.0,0.65207162]
[1748862869109,0.54873834,104510.0,104500.0,0.65207162]
[1748862869305,0.84159834,104510.0,104500.0,0.65207162]
[1748862869513,0.54316,104510.0,104500.0,0.65207162]
[1748862875407,0.68626,104510.0,104500.0,0.65207162]
[1748862876313,0.68626,104510.0,104500.0,0.50559911]
[1748862876505,0.83556,104510.0,104500.0,0.50559911]
[1748862876702,0.83556,104510.0,104500.0,0.50539911]
[1748862877307,0.83556,104510.0,104500.0,0.50559911]
[1748862878718,0.92251516,104510.0,104500.0,0.65207162]
[1748862880616,0.77321516,104510.0,104500.0,0.65207162]
[1748862886814,0.77321516,104510.0,104500.0,0.80127162]
[1748862887014,0.002,104510.0,104500.0,1.16207162]
[1748862887711,0.102,104510.0,104500.0,1.16207162]
[1748862890709,0.002,104510.0,104500.0,1.70659162]
[1748862891116,0.30043834,104510.0,104500.0,1.70659162]
[1748862892326,0.002,104510.0,104500.0,1.70659162]
[1748862893025,0.30043834,104510.0,104500.0,1.70659162]
[1748862895225,0.002,104510.0,104500.0,1.70659162]
[1748862896417,0.002,104510.0,104500.0,1.16207162]
[1748862896418,0.102,104510.0,104500.0,1.16207162]
[1748862896826,0.88751187,104510.0,104500.0,0.31429661]
[1748862897029,1.32431187,104510.0,104500.0,0.21129911]
[1748862897427,1.62275021,104510.0,104500.0,0.21149911]
[1748862897828,0.1913025,104500.0,104490.0,0.00014371]
[1748862898014,1.72209017,104500.0,104490.0,0.00014371]
[1748862898217,2.11622851,104500.0,104490.0,0.00014371]
[1748862898418,2.11622851,104500.0,104490.0,0.00034371]
[1748862898625,2.11622851,104500.0,104490.0,0.00014371]
[1748862898821,2.11622851,104500.0,104490.0,0.00034371]
[1748862899122,1.81979017,104500.0,104490.0,0.00034371]
[1748862899522,1.72409017,104500.0,104490.0,0.00034371]
[1748862899723,1.72509017,104500.0,104490.0,0.00034371]
[1748862900023,2.02348489,104500.0,104490.0,0.00034371]
[1748862900926,1.87701238,104500.0,104490.0,0.00034371]
[1748862901126,2.02648489,104500.0,104490.0,0.00034371]
[1748862902123,1.88001238,104500.0,104490.0,0.00034371]
[1748862902327,2.07648489,104500.0,104490.0,0.00034371]
[1748862903026,1.77809017,104500.0,104490.0,0.00034371]
[1748862905119,1.77809017,104500.0,104490.0,0.00014371]
[1748862905320,1.77809017,104500.0,104490.0,0.00034371]
[1748862905518,2.0759845,104500.0,104490.0,0.00034371]
[1748862906226,2.0729845,104500.0,104490.0,0.00034371]
[1748862906528,2.5701845,104500.0,104490.0,0.00014371]
[1748862906821,2.51547981,104500.0,104490.0,0.00020001]
[1748862907029,2.51547981,104500.0,104490.0,0.00015881]
[1748862907421,2.51647981,104500.0,104490.0,0.00015881]
[1748862907623,0.1913391,104480.0,104470.0,0.00210587]
[1748862907820,0.1913574,104470.0,104450.0,0.48768878]
[1748862908020,0.64717251,104460.0,104450.0,0.77983249]
[1748862908223,0.88627251,104460.0,104450.0,0.77983249]
[1748862908523,0.7398,104460.0,104450.0,0.77046471]
[1748862908915,0.82675516,104460.0,104450.0,0.62726471]
[1748862909120,0.82775516,104460.0,104450.0,0.62726471]
[1748862910027,0.82875516,104460.0,104450.0,0.62726471]
[1748862910227,0.82875516,104460.0,104450.0,0.78306506]
[1748862910728,0.90565009,104460.0,104450.0,0.78306506]
[1748862910918,1.00901009,104460.0,104450.0,0.78306506]
[1748862912930,1.00901009,104460.0,104450.0,0.77373722]
[1748862913432,1.00901009,104460.0,104450.0,0.62726471]
[1748862914022,1.45017009,104460.0,104450.0,0.62726471]
[1748862915438,1.45017009,104460.0,104450.0,0.63665981]
[1748862915939,1.45017009,104460.0,104450.0,0.62726471]
[1748862916125,1.45017009,104460.0,104450.0,0.77373722]
[1748862916527,1.45017009,104460.0,104450.0,0.62726471]
[1748862919124,1.64154579,104460.0,104450.0,0.57941691]
[1748862919438,1.45017009,104460.0,104450.0,0.57941691]
[1748862922231,1.64154579,104460.0,104450.0,0.57941691]
[1748862922434,1.7880183,104460.0,104450.0,0.00034371]
[1748862922636,1.93449081,104460.0,104450.0,0.00014371]
[1748862922938,0.191394,104450.0,104440.0,0.14610647]
[1748862923130,1.30652167,104450.0,104440.0,0.14610647]
[1748862923433,1.30652167,104450.0,104440.0,0.14630647]
[1748862923932,1.30652167,104450.0,104440.0,0.00230647]
[1748862924134,1.30652167,104450.0,104440.0,0.00210647]
[1748862924435,1.30752167,104450.0,104440.0,0.00230647]
[1748862924636,1.30752167,104450.0,104440.0,0.00210647]
[1748862924836,1.30752167,104450.0,104440.0,0.00230647]
[1748862925928,1.30952167,104450.0,104440.0,0.00230647]
[1748862931140,1.30952167,104450.0,104440.0,0.15050647]
[1748862933637,1.30952167,104450.0,104440.0,0.16486647]
[1748862934335,1.30952167,104450.0,104440.0,0.01666647]
[1748862934530,0.1914491,104420.0,104410.0,0.24143138]
[1748862934745,0.9934891,104420.0,104410.0,0.67573138]
[1748862934940,1.0934891,104420.0,104410.0,0.67573138]
[1748862935129,1.05374,104420.0,104410.0,0.67573138]
[1748862935334,1.2451891,104420.0,104410.0,0.67593138]
[1748862935743,1.2461891,104420.0,104410.0,0.67593138]
[1748862936335,1.33314426,104420.0,104410.0,0.67593138]
[1748862936737,1.48074426,104420.0,104410.0,0.67593138]
[1748862937045,1.48174426,104420.0,104410.0,0.67593138]
[1748862937540,1.3947891,104420.0,104410.0,0.67593138]
[1748862937843,1.48174426,104420.0,104410.0,0.82240389]
[1748862939942,1.48174426,104420.0,104410.0,0.67593138]
[1748862941543,0.84905516,104420.0,104410.0,0.67593138]
[1748862941743,1.39369516,104420.0,104410.0,0.67593138]
[1748862942047,1.58514416,104420.0,104410.0,0.67593138]
[1748862942247,1.04050416,104420.0,104410.0,0.67593138]
[1748862942438,0.84905516,104420.0,104410.0,0.67593138]
[1748862942639,1.58514416,104420.0,104410.0,0.67593138]
[1748862942949,0.89290416,104420.0,104410.0,0.82240389]
[1748862943135,0.70145516,104420.0,104410.0,0.82240389]
[1748862943339,0.102,104420.0,104410.0,1.18320389]
[1748862943546,0.002,104420.0,104410.0,1.18320389]
[1748862943855,0.002,104420.0,104410.0,1.62448389]
[1748862946342,0.102,104420.0,104410.0,1.62448389]
[1748862947965,0.00014371,104430.0,104420.0,0.1914489]
[1748862948248,0.00014371,104430.0,104420.0,1.13679392]
[1748862948448,0.00014371,104430.0,104420.0,1.08608541]
[1748862949046,0.00214371,104430.0,104420.0,1.08608541]
[1748862949952,0.00314371,104430.0,104420.0,1.08608541]
[1748862950856,0.00314371,104430.0,104420.0,1.52732541]
[1748862953248,0.10314371,104430.0,104420.0,1.52732541]
[1748862953452,0.00314371,104430.0,104420.0,1.52732541]
[1748862953652,0.10314371,104430.0,104420.0,1.43156141]
[1748862954043,0.00314371,104430.0,104420.0,1.43156141]
[1748862959958,0.00314371,104430.0,104420.0,1.44940146]
[1748862962752,0.10314371,104430.0,104420.0,1.44936146]
[1748862964357,0.10114371,104430.0,104420.0,1.44936146]
[1748862964552,0.10214371,104430.0,104420.0,1.44936146]
[1748862964755,0.00214371,104430.0,104420.0,1.44936146]
[1748862970957,0.00214371,104430.0,104420.0,1.08856146]
[1748862971150,0.00214371,104430.0,104420.0,1.81016146]
[1748862971359,0.1405,104440.0,104430.0,0.1914307]
[1748862971560,0.2856,104450.0,104440.0,0.1914124]
[1748862971768,0.61197767,104450.0,104440.0,0.62848491]
[1748862972465,0.61197767,104450.0,104440.0,0.98928491]
[1748862972963,0.61197767,104450.0,104440.0,0.9988484]
[1748862974164,0.61297767,104450.0,104440.0,0.9998484]
[1748862974359,0.07903864,104460.0,104440.0,1.249556]
[1748862974563,0.1403,104470.0,104450.0,1.37395912]
[1748862974764,0.1403,104470.0,104460.0,1.57284072]
[1748862976357,0.1453,104470.0,104460.0,1.57284072]
[1748862976866,0.22219888,104470.0,104460.0,1.42636821]
[1748862977051,0.21719888,104470.0,104460.0,1.42636821]
[1748862977252,0.21919888,104470.0,104460.0,1.57584072]
[1748862978163,0.36719888,104470.0,104460.0,1.57584072]
[1748862978361,0.36719888,104470.0,104460.0,1.42936821]
[1748862984072,0.46719888,104470.0,104460.0,1.53256821]
[1748862985671,0.55415404,104470.0,104460.0,1.09152821]
[1748862985877,0.69365404,104470.0,104460.0,1.53252821]
[1748862986073,0.69365404,104470.0,104460.0,1.53272821]
[1748862987874,0.69365404,104470.0,104460.0,0.98844821]
[1748862988067,0.69365404,104470.0,104460.0,1.53272821]
[1748862988571,0.69365404,104470.0,104460.0,0.98844821]
[1748862988776,1.24581144,104470.0,104460.0,0.4396557]
[1748862988967,1.25006098,104470.0,104460.0,0.4396557]
[1748862989170,1.05870358,104470.0,104460.0,0.4396557]
[1748862989471,1.05870358,104470.0,104460.0,0.4394557]
[1748862989679,1.05870358,104470.0,104460.0,0.4396557]
[1748862989867,1.05870358,104470.0,104460.0,0.5867557]
[1748862990069,1.05445404,104470.0,104460.0,0.73322821]
[1748862991073,1.05445404,104470.0,104460.0,0.58612821]
[1748862991585,1.05445404,104470.0,104460.0,0.92384821]
[1748862992173,0.69365404,104470.0,104460.0,1.07004821]
[1748862992971,0.69365404,104470.0,104460.0,1.17328821]
[1748862993369,0.60669888,104470.0,104460.0,1.17328821]
[1748862993568,0.69365404,104470.0,104460.0,1.17328821]
[1748862994985,0.59365404,104470.0,104460.0,1.17328821]
[1748862995183,0.07889888,104470.0,104460.0,1.68056072]
[1748862996288,0.00014371,104480.0,104470.0,0.1913574]
[1748862996583,0.00014371,104480.0,104470.0,1.13622991]
[1748862997890,0.00014371,104480.0,104470.0,1.14022991]
[1748862997891,0.00114371,104480.0,104470.0,1.14022991]
[1748862998089,0.00214371,104480.0,104470.0,1.14022991]
[1748862998987,0.00214371,104480.0,104470.0,1.14322991]
[1748863000285,0.08054746,104480.0,104470.0,1.14322991]
[1748863000500,0.00214371,104480.0,104470.0,1.14322991]
[1748863001491,0.00214371,104480.0,104470.0,1.17372991]
[1748863001492,0.18909887,104480.0,104470.0,1.17372991]
[1748863001686,0.63269887,104480.0,104470.0,1.17372991]
[1748863002294,0.63269887,104480.0,104470.0,1.0272574]
[1748863002499,0.63269887,104480.0,104470.0,1.17372991]
[1748863003493,0.63269887,104480.0,104470.0,1.17392991]
[1748863004689,0.70956757,104480.0,104470.0,1.17392991]
[1748863005101,1.00720956,104480.0,104470.0,1.17392991]
[1748863008092,0.71460956,104480.0,104470.0,1.17392991]
[1748863009698,0.4766544,104480.0,104470.0,1.53472991]
[1748863009899,0.4766544,104480.0,104470.0,1.51916573]
[1748863009900,0.3766544,104480.0,104470.0,1.51916573]
[1748863010203,0.07901241,104480.0,104470.0,1.51916573]
[1748863011098,0.00214371,104480.0,104470.0,1.51916573]
[1748863012493,0.00214371,104480.0,104470.0,0.97496573]
[1748863012687,0.00214371,104480.0,104470.0,1.51912573]
[1748863013088,0.00214371,104480.0,104470.0,1.51892573]
[1748863013293,0.00214371,104480.0,104470.0,1.51912573]
[1748863013803,0.08000084,104480.0,104470.0,1.51912573]
[1748863014101,0.00214371,104480.0,104470.0,1.51912573]
[1748863018107,0.07729091,104480.0,104470.0,1.51912573]
[1748863018408,0.00214371,104480.0,104470.0,1.51912573]
[1748863019705,0.00214371,104480.0,104470.0,1.07820573]
[1748863019902,0.00214371,104480.0,104470.0,1.51908573]
[1748863021212,0.18909887,104480.0,104470.0,1.51904573]
[1748863021504,0.62329887,104480.0,104470.0,1.51884573]
[1748863021910,0.62329887,104480.0,104470.0,1.51904573]
[1748863022103,0.70059567,104480.0,104470.0,0.82849322]
[1748863022309,1.39920728,104480.0,104470.0,0.32409322]
[1748863022503,1.25698431,104480.0,104470.0,0.32409322]
[1748863022709,1.25698431,104480.0,104470.0,0.32389322]
[1748863022909,1.25698431,104480.0,104470.0,0.32409322]
[1748863023106,1.06564521,104480.0,104470.0,0.32409322]
[1748863023415,1.40345682,104480.0,104470.0,0.18299322]
[1748863023613,1.39920728,104480.0,104470.0,0.17979322]
[1748863023912,1.39920728,104480.0,104470.0,0.17999322]
[1748863024108,1.20686818,104480.0,104470.0,0.17799322]
[1748863024304,1.05939567,104480.0,104470.0,0.32346573]
[1748863024505,1.06039567,104480.0,104470.0,0.32346573]
[1748863025503,1.06039567,104480.0,104470.0,0.46166573]
[1748863030213,1.06039567,104480.0,104470.0,0.61366573]
[1748863042134,1.35803766,104480.0,104470.0,0.61366573]
[1748863044949,1.35803766,104480.0,104470.0,0.76436573]
[1748863046042,1.35803766,104480.0,104470.0,0.61789322]
[1748863046342,1.35803766,104480.0,104470.0,0.76436573]
[1748863049740,0.9102825,104480.0,104470.0,0.76436573]
[1748863049936,0.56303766,104480.0,104470.0,0.76436573]
[1748863050633,0.56303766,104480.0,104470.0,1.12516573]
[1748863051447,0.26539567,104480.0,104470.0,1.12516573]
[1748863052336,0.56303766,104480.0,104470.0,1.12516573]
[1748863053146,0.56303766,104480.0,104470.0,1.12496573]
[1748863055148,0.26539567,104480.0,104470.0,1.12496573]
[1748863055843,0.56303766,104480.0,104470.0,1.12496573]
[1748863056639,0.4760825,104480.0,104470.0,1.12496573]
[1748863057046,0.3760825,104480.0,104470.0,1.12496573]
[1748863057241,0.07844051,104480.0,104470.0,1.12496573]
[1748863061950,0.07844051,104480.0,104470.0,1.56580573]
[1748863062353,0.17844051,104480.0,104470.0,1.56580573]
[1748863062653,0.17844051,104480.0,104470.0,1.56600573]
[1748863066843,0.05567561,104480.0,104470.0,1.56600573]
[1748863067050,0.74885646,104510.0,104500.0,0.1913025]
[1748863067051,0.38805646,104510.0,104500.0,0.1913025]
[1748863067344,0.47501162,104510.0,104500.0,0.32221317]
[1748863067549,0.47501162,104510.0,104500.0,0.75741317]
[1748863067550,0.91051162,104510.0,104500.0,0.75741317]
[1748863067752,0.91051162,104510.0,104500.0,0.61121317]
[1748863068051,0.91051162,104510.0,104500.0,0.17574066]
[1748863068052,1.41778413,104510.0,104500.0,0.17574066]
[1748863068258,1.41778413,104510.0,104500.0,0.17594066]
[1748863068456,1.27131162,104510.0,104500.0,0.17594066]
[1748863068663,0.88325516,104510.0,104500.0,0.17594066]
[1748863068855,0.88825516,104510.0,104500.0,0.17694066]
[1748863069555,1.15972985,104510.0,104500.0,0.17794066]
[1748863070055,1.60172985,104510.0,104500.0,0.17794066]
[1748863070457,1.74820236,104510.0,104500.0,0.17794066]
[1748863071157,1.30620236,104510.0,104500.0,0.17794066]
[1748863071357,1.74816236,104510.0,104500.0,0.17794066]
[1748863071652,1.30620236,104510.0,104500.0,0.17794066]
[1748863071857,1.74812236,104510.0,104500.0,0.17794066]
[1748863072157,1.85770643,104510.0,104500.0,0.17794066]
[1748863073555,1.51147443,104510.0,104500.0,0.002]
[1748863073759,0.1913025,104500.0,104490.0,0.00014371]
[1748863073957,1.17093017,104500.0,104490.0,0.00014371]
[1748863074158,1.46949776,104500.0,104490.0,0.00014371]
[1748863074358,1.46949776,104500.0,104490.0,0.00034371]
[1748863074763,1.27093017,104500.0,104490.0,0.00034371]
[1748863075169,1.27393017,104500.0,104490.0,0.00134371]
[1748863076253,0.1913391,104480.0,104470.0,0.58502807]
[1748863076460,1.62583386,104480.0,104470.0,0.34247528]
[1748863076860,1.91713386,104480.0,104470.0,0.34267528]
[1748863077060,1.97930677,104480.0,104470.0,0.34267528]
[1748863077653,1.97930677,104480.0,104470.0,0.34367528]
[1748863078064,1.98030677,104480.0,104470.0,0.00372838]
[1748863078265,2.27892356,104480.0,104470.0,0.00392838]
[1748863078562,2.66698002,104480.0,104470.0,0.00372838]
[1748863078767,2.66698002,104480.0,104470.0,0.00392838]
[1748863078968,2.36836323,104480.0,104470.0,0.00392838]
[1748863079168,2.36936323,104480.0,104470.0,0.00392838]
[1748863079477,2.37036323,104480.0,104470.0,0.00292838]
[1748863079765,1.98230677,104480.0,104470.0,0.00292838]
[1748863080955,1.98030677,104480.0,104470.0,0.00192838]
[1748863081169,1.98330677,104480.0,104470.0,0.00292838]
[1748863081767,2.28173894,104480.0,104470.0,0.00292838]
[1748863082065,2.28173894,104480.0,104470.0,0.19428578]
[1748863082066,2.13526643,104480.0,104470.0,0.19428578]
[1748863082269,1.98330677,104480.0,104470.0,0.19428578]
[1748863082660,1.98334677,104480.0,104470.0,0.19428578]
[1748863083064,2.2388517,104480.0,104470.0,0.19428578]
[1748863083261,2.2388517,104480.0,104470.0,0.47928578]
[1748863083767,2.2388517,104480.0,104470.0,0.47928568]
[1748863083969,2.2388517,104480.0,104470.0,0.28792838]
[1748863084170,2.2388517,104480.0,104470.0,0.47928568]
[1748863084365,2.38532421,104480.0,104470.0,0.00292838]
[1748863084565,2.38532421,104480.0,104470.0,0.00272838]
[1748863084864,2.38532421,104480.0,104470.0,0.00292838]
[1748863085669,0.37831256,104470.0,104460.0,1e-08]
[1748863085869,1.37758507,104470.0,104460.0,1e-08]
[1748863086169,1.57330907,104470.0,104460.0,1e-08]
[1748863086466,1.57330907,104470.0,104460.0,0.00020001]
[1748863086675,0.1913941,104450.0,104440.0,0.57360917]
[1748863086970,1.18082926,104450.0,104440.0,0.57360917]
[1748863087157,1.33202926,104450.0,104440.0,0.57360917]
[1748863087357,1.62462926,104450.0,104440.0,0.57380917]
[1748863087567,1.62462926,104450.0,104440.0,0.57360917]
[1748863087961,1.62462926,104450.0,104440.0,0.57380917]
[1748863088374,1.62562926,104450.0,104440.0,0.57580917]
[1748863088754,1.62662926,104450.0,104440.0,0.57980917]
[1748863089257,1.62862926,104450.0,104440.0,0.52995657]
[1748863089457,2.13590177,104450.0,104440.0,0.14840647]
[1748863089671,2.13590177,104450.0,104440.0,0.33961877]
[1748863089869,2.13590177,104450.0,104440.0,0.33981877]
[1748863090066,2.43380647,104450.0,104440.0,0.33981877]
[1748863090267,2.43380647,104450.0,104440.0,0.48831877]
[1748863090465,2.13590177,104450.0,104440.0,0.48831877]
[1748863090974,2.06494358,104450.0,104440.0,0.48831877]
[1748863096178,2.21141609,104450.0,104440.0,0.48831877]
[1748863097377,0.62726948,104450.0,104440.0,0.63479128]
[1748863097569,0.62726948,104450.0,104440.0,0.99559128]
[1748863097570,0.26646948,104450.0,104440.0,0.99559128]
[1748863097878,0.26646948,104450.0,104440.0,0.63479128]
[1748863098670,0.62726948,104450.0,104440.0,0.63479128]
[1748863100370,0.26646948,104450.0,104440.0,0.63479128]
[1748863102776,0.70774948,104450.0,104440.0,0.63479128]
[1748863103978,1.00485431,104450.0,104440.0,0.63479128]
[1748863104778,0.70774948,104450.0,104440.0,0.63479128]
[1748863105580,1.04561609,104450.0,104440.0,0.48811877]
[1748863105767,1.70111609,104450.0,104440.0,0.29690647]
[1748863106167,1.70111609,104450.0,104440.0,0.14820647]
[1748863106385,0.1914124,104440.0,104430.0,0.53343051]
[1748863106571,1.32754007,104440.0,104430.0,0.53343051]
[1748863106975,1.6246449,104440.0,104430.0,0.53343051]
[1748863107784,1.6246449,104440.0,104430.0,0.53443051]
[1748863107785,1.6256449,104440.0,104430.0,0.53443051]
[1748863108481,1.6256449,104440.0,104430.0,0.53543051]
[1748863109182,1.28775999,104440.0,104430.0,0.53543051]
[1748863109387,1.72891999,104440.0,104430.0,0.68190302]
[1748863109991,1.72891999,104440.0,104430.0,0.53543051]
[1748863110181,1.92033239,104440.0,104430.0,0.53543051]
[1748863110380,1.62322756,104440.0,104430.0,0.53543051]
[1748863110983,1.43181516,104440.0,104430.0,0.53543051]
[1748863113889,0.62903516,104440.0,104430.0,0.53543051]
[1748863114084,0.98983516,104440.0,104430.0,0.53543051]
[1748863116890,0.98983516,104440.0,104430.0,0.68190302]
[1748863117694,1.28693999,104440.0,104430.0,0.68190302]
[1748863118982,0.75890483,104440.0,104430.0,0.82837553]
[1748863119197,0.75890483,104440.0,104430.0,1.18917553]
[1748863119198,0.29810483,104440.0,104430.0,1.18917553]
[1748863119692,0.001,104440.0,104430.0,1.18917553]
[1748863121287,0.001,104440.0,104430.0,1.73349553]
[1748863125300,0.001,104440.0,104430.0,1.73774507]
[1748863126401,0.001,104440.0,104430.0,1.73349553]
[1748863127901,0.001,104440.0,104430.0,1.58702302]
[1748863129704,0.101,104440.0,104430.0,1.58702302]
[1748863129899,0.101,104440.0,104430.0,1.14594302]
[1748863130095,0.101,104440.0,104430.0,1.58698302]
[1748863130895,0.101,104440.0,104430.0,1.14594302]
[1748863131103,0.101,104440.0,104430.0,1.58698302]
[1748863132495,0.10524954,104440.0,104430.0,1.58698302]
[1748863133606,0.10524954,104440.0,104430.0,1.60134302]
[1748863134097,0.29666194,104440.0,104430.0,0.54999051]
[1748863134294,1.17918961,104440.0,104430.0,0.54999051]
[1748863134501,1.76058961,104440.0,104430.0,0.54999051]
[1748863135700,1.6141171,104440.0,104430.0,0.54999051]
[1748863136410,1.91269761,104440.0,104430.0,0.54999051]
[1748863138400,1.91369761,104440.0,104430.0,0.54899051]
[1748863138603,1.91469761,104440.0,104430.0,0.54799051]
[1748863141411,1.91269761,104440.0,104430.0,0.54799051]
[1748863141608,1.91369761,104440.0,104430.0,0.54899051]
[1748863142411,1.91269761,104440.0,104430.0,0.54999051]
[1748863145823,1.6141171,104440.0,104430.0,0.54999051]
[1748863146124,1.62348927,104440.0,104430.0,0.54999051]
[1748863146617,1.62348927,104440.0,104430.0,0.31070371]
[1748863146818,1.76996178,104440.0,104430.0,0.16270371]
[1748863147119,2.06854229,104440.0,104430.0,0.35393441]
[1748863147315,2.06854229,104440.0,104430.0,0.35413441]
[1748863148106,1.91269761,104440.0,104430.0,0.35413441]
[1748863149211,1.47169761,104440.0,104430.0,0.35413441]
[1748863149409,1.91273761,104440.0,104430.0,0.50093441]
[1748863150410,1.92240816,104440.0,104430.0,0.50093441]
[1748863150918,2.28320816,104440.0,104430.0,0.50093441]
[1748863153212,2.27353761,104440.0,104430.0,0.50093441]
[1748863153419,1.9749571,104440.0,104430.0,0.50093441]
[1748863155217,1.5339171,104440.0,104430.0,0.50093441]
[1748863155513,2.27353761,104440.0,104430.0,0.50093441]
[1748863156217,1.9749571,104440.0,104430.0,0.16270371]
[1748863156516,2.12142961,104440.0,104430.0,0.35413441]
[1748863156819,2.22466961,104440.0,104430.0,0.01670371]
[1748863157127,2.22466961,104440.0,104430.0,0.01650371]
[1748863157128,2.52325012,104440.0,104430.0,0.01650371]
[1748863157314,2.57325012,104440.0,104430.0,0.01650371]
[1748863157710,2.27466961,104440.0,104430.0,0.01670371]
[1748863162322,2.57338168,104440.0,104430.0,0.01670371]
[1748863163022,2.27466961,104440.0,104430.0,0.01670371]
[1748863163722,2.27466961,104440.0,104430.0,0.01650371]
[1748863163928,2.27466961,104440.0,104430.0,0.01670371]
[1748863164323,0.27840416,104420.0,104410.0,1e-08]
[1748863164515,1.32691667,104420.0,104410.0,0.19146741]
[1748863164721,1.76621667,104420.0,104410.0,0.35570267]
[1748863164919,1.76621667,104420.0,104410.0,0.35590267]
[1748863165120,2.06508453,104420.0,104410.0,0.35590267]
[1748863165521,2.06608453,104420.0,104410.0,0.35790267]
[1748863167123,2.06708453,104420.0,104410.0,0.35790267]
[1748863167718,1.92061202,104420.0,104410.0,0.35790267]
[1748863167918,1.92061202,104420.0,104410.0,0.49630267]
[1748863168820,1.20322786,104420.0,104410.0,0.64277518]
[1748863169222,0.4628,104420.0,104410.0,0.64277518]
[1748863169521,0.4628,104420.0,104410.0,0.78317518]
[1748863170026,0.76166786,104420.0,104410.0,0.78317518]
[1748863170930,0.76166786,104420.0,104410.0,0.63670267]
[1748863171228,0.76166786,104420.0,104410.0,0.78317518]
[1748863173031,0.40086786,104420.0,104410.0,0.78317518]
[1748863174228,0.102,104420.0,104410.0,0.78317518]
[1748863176236,0.10624954,104420.0,104410.0,0.78317518]
[1748863179734,0.10624954,104420.0,104410.0,0.63670267]
[1748863180041,0.10624954,104420.0,104410.0,0.78317518]
[1748863181041,0.40574954,104420.0,104410.0,0.63670267]
[1748863182242,0.59719854,104420.0,104410.0,0.63670267]
[1748863183544,0.59719854,104420.0,104410.0,0.62097816]
[1748863184146,0.8960664,104420.0,104410.0,0.62097816]
[1748863184737,0.98302156,104420.0,104410.0,0.62097816]
[1748863185544,0.83062621,104420.0,104410.0,0.62097816]
[1748863185951,0.98212621,104420.0,104410.0,0.62097816]
[1748863186149,0.8356537,104420.0,104410.0,0.62097816]
[1748863186339,1.22188998,104420.0,104410.0,0.62097816]
[1748863189154,1.58268998,104420.0,104410.0,0.62097816]
[1748863191158,1.39124098,104420.0,104410.0,0.62097816]
[1748863191654,1.0050047,104420.0,104410.0,0.62097816]
[1748863192650,1.0050047,104420.0,104410.0,0.76745067]
[1748863192954,0.6442047,104420.0,104410.0,0.76745067]
[1748863193157,1.0050047,104420.0,104410.0,0.76745067]
[1748863193551,1.0050047,104420.0,104410.0,0.62097816]
[1748863195356,1.30407597,104420.0,104410.0,0.62097816]
[1748863195849,1.30407597,104420.0,104410.0,0.62077816]
[1748863197159,1.45093845,104420.0,104410.0,0.76764064]
[1748863198560,1.64238745,104420.0,104410.0,0.76764064]
[1748863200259,1.45093845,104420.0,104410.0,0.76764064]
[1748863200656,1.64238745,104420.0,104410.0,0.48237816]
[1748863200854,1.64238745,104420.0,104410.0,0.62924064]
[1748863201158,1.34331618,104420.0,104410.0,0.64380064]
[1748863201358,1.34331618,104420.0,104410.0,0.79170064]
[1748863201755,1.15186718,104420.0,104410.0,0.79170064]
[1748863201951,1.15186718,104420.0,104410.0,1.29936312]
[1748863201952,0.10624954,104420.0,104410.0,1.29936312]
[1748863202150,0.10624954,104420.0,104410.0,0.64483816]